{"text_format":"3","workbook":"xlsx","n_sheets":1,"sheets":["تقرير المصروفات"],"not_rendered":{"images":1,"defined_names":12},"read":"whole","date_system":"1900"}

{"sheet":"تقرير المصروفات","index":0,"n_rows":24,"n_cols":13,"rows_kept":24,"merged":[[3,2,3,3],[3,5,3,6],[3,9,3,10],[4,2,4,3],[4,5,4,6],[4,9,4,10],[5,2,5,3],[5,5,5,6],[5,9,5,10],[6,2,6,3],[6,5,6,6],[6,9,6,10],[7,9,7,10]]}
[null,"تقرير المصروفات"]
[null,"CONTOSO, LTD"]
[null,"123 جنوب الشارع الرئيسي، المنطقة الشمالية بجدة، السعودية 12345"]
[null,"الهاتف",4255550121,null,"الاسم","ضمير رفاعي",null,null,"الغرض","ندوات المبيعات السنوية",null,"معدل المسافة بالميل",{"v":0.5,"d":"ر. س0.50/الميل"}]
[null,"الفاكس",4255550122,null,"القسم","المبيعات",null,null,"البداية",{"$f":"IFERROR(MIN(المصروفات[التاريخ]),\"\")","v":"2018-06-12"},null,"سعر الوجبة",{"v":30,"d":"ر. س30.00/اليوم"}]
[null,"البريد الإلكتروني","info@contoso.com",null,"المنصب","المدير العام",null,null,"النهاية",{"$f":"IFERROR(MAX(المصروفات[التاريخ]),\"\")","v":"2018-07-12"},null,"سعر الفندق",{"v":200,"d":"ر. س200.00/الليلة"}]
[null,"الويب","www.contoso.com",null,"المدير","سلام بيطار",null,null,"تم الإعداد من قِبل","ضمير رفاعي",null,"سعر المكالمات الهاتفية",{"v":10,"d":"ر. س10.00/اليوم"}]
[{"$nulls":8},"تمت الموافقة من قِبل","سلام بيطار",null,"مصروفات متنوعة. المعدّل",{"v":50,"d":"ر. س50.00/اليوم"}]
[]
[null,"التاريخ","الحساب","الوصف","الفندق","النقل","الوجبات","الهاتف","مصروفات متنوعة.","عداد المسافات \nبدء","عداد المسافات \nانتهاء","المسافة المقطوعة بالميل \nالإجمالي","الإجمالي "]
[null,{"$f":"TODAY()","v":"2018-06-12"},"المبيعات","المسافة المقطوعة بالميل",{"$nulls":4},{"v":50,"d":"ر.س.‏ 50.00"},{"v":11378.5,"d":"11,378.5 ميل"},{"v":11456.2,"d":"11,456.2 ميل"},{"$f":"IF(COUNTA(المصروفات[[#This Row],[عداد المسافات \nبدء]:[عداد المسافات \nانتهاء]])=2,(المصروفات[[#This Row],[عداد المسافات \nانتهاء]]-المصروفات[[#This Row],[عداد المسافات \nبدء]])*MileageRate,\"\")","v":{"v":38.850000000000364,"d":"ر.س.‏ 38.85"}},{"$f":"IF(COUNTA(المصروفات[[#This Row],[التاريخ]:[عداد المسافات \nانتهاء]])=0,\"\",SUM(المصروفات[[#This Row],[الفندق]:[النقل]],المصروفات[[#This Row],[الوجبات]:[مصروفات متنوعة.]],((المصروفات[[#This Row],[عداد المسافات \nانتهاء]]-المصروفات[[#This Row],[عداد المسافات \nبدء]])*(MileageRate))))","v":{"v":88.85000000000036,"d":"ر.س.‏ 88.85"}}]
[null,{"$f":"TODAY()+30","v":"2018-07-12"},"المبيعات","الاصطلاح",{"v":445,"d":"ر.س.‏ 445.00"},{"v":225,"d":"ر.س.‏ 225.00"},{"v":20,"d":"ر.س.‏ 20.00"},null,{"v":5,"d":"ر.س.‏ 5.00"},{"v":11500,"d":"11,500.0 ميل"},{"v":11560,"d":"11,560.0 ميل"},{"$f":"IF(COUNTA(المصروفات[[#This Row],[عداد المسافات \nبدء]:[عداد المسافات \nانتهاء]])=2,(المصروفات[[#This Row],[عداد المسافات \nانتهاء]]-المصروفات[[#This Row],[عداد المسافات \nبدء]])*MileageRate,\"\")","v":{"v":30,"d":"ر.س.‏ 30.00"}},{"$f":"IF(COUNTA(المصروفات[[#This Row],[التاريخ]:[عداد المسافات \nانتهاء]])=0,\"\",SUM(المصروفات[[#This Row],[الفندق]:[النقل]],المصروفات[[#This Row],[الوجبات]:[مصروفات متنوعة.]],((المصروفات[[#This Row],[عداد المسافات \nانتهاء]]-المصروفات[[#This Row],[عداد المسافات \nبدء]])*(MileageRate))))","v":{"v":725,"d":"ر.س.‏ 725.00"}}]
[{"$nulls":11},{"$f":"IF(COUNTA(المصروفات[[#This Row],[عداد المسافات \nبدء]:[عداد المسافات \nانتهاء]])=2,(المصروفات[[#This Row],[عداد المسافات \nانتهاء]]-المصروفات[[#This Row],[عداد المسافات \nبدء]])*MileageRate,\"\")","v":""},{"$f":"IF(COUNTA(المصروفات[[#This Row],[التاريخ]:[عداد المسافات \nانتهاء]])=0,\"\",SUM(المصروفات[[#This Row],[الفندق]:[النقل]],المصروفات[[#This Row],[الوجبات]:[مصروفات متنوعة.]],((المصروفات[[#This Row],[عداد المسافات \nانتهاء]]-المصروفات[[#This Row],[عداد المسافات \nبدء]])*(MileageRate))))","v":""}]
[{"$nulls":11},{"$f":"IF(COUNTA(المصروفات[[#This Row],[عداد المسافات \nبدء]:[عداد المسافات \nانتهاء]])=2,(المصروفات[[#This Row],[عداد المسافات \nانتهاء]]-المصروفات[[#This Row],[عداد المسافات \nبدء]])*MileageRate,\"\")","v":""},{"$f":"IF(COUNTA(المصروفات[[#This Row],[التاريخ]:[عداد المسافات \nانتهاء]])=0,\"\",SUM(المصروفات[[#This Row],[الفندق]:[النقل]],المصروفات[[#This Row],[الوجبات]:[مصروفات متنوعة.]],((المصروفات[[#This Row],[عداد المسافات \nانتهاء]]-المصروفات[[#This Row],[عداد المسافات \nبدء]])*(MileageRate))))","v":""}]
[{"$nulls":11},{"$f":"IF(COUNTA(المصروفات[[#This Row],[عداد المسافات \nبدء]:[عداد المسافات \nانتهاء]])=2,(المصروفات[[#This Row],[عداد المسافات \nانتهاء]]-المصروفات[[#This Row],[عداد المسافات \nبدء]])*MileageRate,\"\")","v":""},{"$f":"IF(COUNTA(المصروفات[[#This Row],[التاريخ]:[عداد المسافات \nانتهاء]])=0,\"\",SUM(المصروفات[[#This Row],[الفندق]:[النقل]],المصروفات[[#This Row],[الوجبات]:[مصروفات متنوعة.]],((المصروفات[[#This Row],[عداد المسافات \nانتهاء]]-المصروفات[[#This Row],[عداد المسافات \nبدء]])*(MileageRate))))","v":""}]
[{"$nulls":11},{"$f":"IF(COUNTA(المصروفات[[#This Row],[عداد المسافات \nبدء]:[عداد المسافات \nانتهاء]])=2,(المصروفات[[#This Row],[عداد المسافات \nانتهاء]]-المصروفات[[#This Row],[عداد المسافات \nبدء]])*MileageRate,\"\")","v":""},{"$f":"IF(COUNTA(المصروفات[[#This Row],[التاريخ]:[عداد المسافات \nانتهاء]])=0,\"\",SUM(المصروفات[[#This Row],[الفندق]:[النقل]],المصروفات[[#This Row],[الوجبات]:[مصروفات متنوعة.]],((المصروفات[[#This Row],[عداد المسافات \nانتهاء]]-المصروفات[[#This Row],[عداد المسافات \nبدء]])*(MileageRate))))","v":""}]
[{"$nulls":11},{"$f":"IF(COUNTA(المصروفات[[#This Row],[عداد المسافات \nبدء]:[عداد المسافات \nانتهاء]])=2,(المصروفات[[#This Row],[عداد المسافات \nانتهاء]]-المصروفات[[#This Row],[عداد المسافات \nبدء]])*MileageRate,\"\")","v":""},{"$f":"IF(COUNTA(المصروفات[[#This Row],[التاريخ]:[عداد المسافات \nانتهاء]])=0,\"\",SUM(المصروفات[[#This Row],[الفندق]:[النقل]],المصروفات[[#This Row],[الوجبات]:[مصروفات متنوعة.]],((المصروفات[[#This Row],[عداد المسافات \nانتهاء]]-المصروفات[[#This Row],[عداد المسافات \nبدء]])*(MileageRate))))","v":""}]
[{"$nulls":11},{"$f":"IF(COUNTA(المصروفات[[#This Row],[عداد المسافات \nبدء]:[عداد المسافات \nانتهاء]])=2,(المصروفات[[#This Row],[عداد المسافات \nانتهاء]]-المصروفات[[#This Row],[عداد المسافات \nبدء]])*MileageRate,\"\")","v":""},{"$f":"IF(COUNTA(المصروفات[[#This Row],[التاريخ]:[عداد المسافات \nانتهاء]])=0,\"\",SUM(المصروفات[[#This Row],[الفندق]:[النقل]],المصروفات[[#This Row],[الوجبات]:[مصروفات متنوعة.]],((المصروفات[[#This Row],[عداد المسافات \nانتهاء]]-المصروفات[[#This Row],[عداد المسافات \nبدء]])*(MileageRate))))","v":""}]
[{"$nulls":11},{"$f":"IF(COUNTA(المصروفات[[#This Row],[عداد المسافات \nبدء]:[عداد المسافات \nانتهاء]])=2,(المصروفات[[#This Row],[عداد المسافات \nانتهاء]]-المصروفات[[#This Row],[عداد المسافات \nبدء]])*MileageRate,\"\")","v":""},{"$f":"IF(COUNTA(المصروفات[[#This Row],[التاريخ]:[عداد المسافات \nانتهاء]])=0,\"\",SUM(المصروفات[[#This Row],[الفندق]:[النقل]],المصروفات[[#This Row],[الوجبات]:[مصروفات متنوعة.]],((المصروفات[[#This Row],[عداد المسافات \nانتهاء]]-المصروفات[[#This Row],[عداد المسافات \nبدء]])*(MileageRate))))","v":""}]
[{"$nulls":11},{"$f":"IF(COUNTA(المصروفات[[#This Row],[عداد المسافات \nبدء]:[عداد المسافات \nانتهاء]])=2,(المصروفات[[#This Row],[عداد المسافات \nانتهاء]]-المصروفات[[#This Row],[عداد المسافات \nبدء]])*MileageRate,\"\")","v":""},{"$f":"IF(COUNTA(المصروفات[[#This Row],[التاريخ]:[عداد المسافات \nانتهاء]])=0,\"\",SUM(المصروفات[[#This Row],[الفندق]:[النقل]],المصروفات[[#This Row],[الوجبات]:[مصروفات متنوعة.]],((المصروفات[[#This Row],[عداد المسافات \nانتهاء]]-المصروفات[[#This Row],[عداد المسافات \nبدء]])*(MileageRate))))","v":""}]
[{"$nulls":11},{"$f":"IF(COUNTA(المصروفات[[#This Row],[عداد المسافات \nبدء]:[عداد المسافات \nانتهاء]])=2,(المصروفات[[#This Row],[عداد المسافات \nانتهاء]]-المصروفات[[#This Row],[عداد المسافات \nبدء]])*MileageRate,\"\")","v":""},{"$f":"IF(COUNTA(المصروفات[[#This Row],[التاريخ]:[عداد المسافات \nانتهاء]])=0,\"\",SUM(المصروفات[[#This Row],[الفندق]:[النقل]],المصروفات[[#This Row],[الوجبات]:[مصروفات متنوعة.]],((المصروفات[[#This Row],[عداد المسافات \nانتهاء]]-المصروفات[[#This Row],[عداد المسافات \nبدء]])*(MileageRate))))","v":""}]
[null,"الإجماليات",null,null,{"$f":"SUBTOTAL(109,المصروفات[الفندق])","v":445},{"$f":"SUBTOTAL(109,المصروفات[النقل])","v":225},{"$f":"SUBTOTAL(109,المصروفات[الوجبات])","v":20},{"$f":"SUBTOTAL(109,المصروفات[الهاتف])","v":0},{"$f":"SUBTOTAL(109,المصروفات[مصروفات متنوعة.])","v":55},{"$nulls":3},{"$f":"SUBTOTAL(109,المصروفات[[الإجمالي ]])","v":{"v":813.8500000000004,"d":"ر.س.‏ 813.85"}}]
[{"$nulls":11},"الدفعات المقدمة",{"v":0,"d":"ر.س.‏ 0.00"}]
[{"$nulls":11},"الإجمالي",{"$f":"المصروفات[[#Totals],[الإجمالي ]]-الدفعات_المقدمة","v":{"v":813.8500000000004,"d":"ر.س.‏ 813.85"}}]